[Event "XIII Mediterranean Championship 2023"]
[Site "Castell-Platja d Aro"]
[Date "2023.11.07"]
[Round "5.16"]
[White "Alonso Gimenez, Mauro"]
[Black "Vehi Bach, Victor Manuel"]
[Result "0-1"]
[ECO "B40"]
[WhiteElo "1978"]
[BlackElo "2216"]
[Annotator "RC"]
[PlyCount "96"]
[EventDate "2023.10.26"]
[EventType "swiss"]
[EventCountry "ESP"]
[SourceTitle "playchess.com"]
[Source "ChessBase"]
[SourceQuality "1"]
[TimeControl "5400+30"]

1. e4 {[%emt 0:00:02]} c5 {[%emt 0:00:06]} 2. Nc3 {[%emt 0:00:04]} a6 {[%emt 0:00:12]} 3. g3 {[%emt 0:00:08]} b5 {[%emt 0:01:17]} 4. Bg2 {[%emt 0:00:11]} Bb7 {[%emt 0:00:06]} 5. d3 {[%emt 0:00:09]} e6 {[%emt 0:01:36]} 6. Nf3 {[%emt 0:01:24]} d6 {[%emt 0:04:27]} 7. O-O {[%emt 0:01:13]} Nf6 {[%emt 0:01:14]} 8. Ne1 {[%emt 0:02:54]} Nc6 {[%emt 0:01:53]} 9. f4 {[%emt 0:01:46]} Be7 {[%emt 0:00:18]} 10. Nf3 {[%emt 0:00:09]} Qc7 {[%emt 0:37:34]} 11. e5 {[%emt 0:19:14]} dxe5 {[%emt 0:00:14]} 12. Nxe5 {[%emt 0:00:26]} O-O {[%emt 0:03:31]} 13. Be3 {[%emt 0:22:26]} Nxe5 {[%emt 0:13:56]} 14. Bxb7 {[%emt 0:01:33]} Neg4 {[%emt 0:00:10]} 15. Bxa8 {[%emt 0:02:24]} Nxe3 {[%emt 0:00:06]} 16. Qf3 {[%emt 0:03:04]} Nxf1 {[%emt 0:00:15]} 17. Rxf1 {[%emt 0:00:08]} c4 {[%emt 0:00:05]} 18. Be4 {[%emt 0:11:16]} Nxe4 {[%emt 0:01:21]} 19. dxe4 {[%emt 0:07:35]} b4 {[%emt 0:00:10]} 20. Nd1 {[%emt 0:00:04]} Qa5 {[%emt 0:05:57]} 21. Qg4 {[%emt 0:04:30]} Qxa2 {[%emt 0:01:55]} 22. f5 {[%emt 0:02:50]} exf5 {[%emt 0:00:13]} 23. exf5 {[%emt 0:00:44]} Bf6 {[%emt 0:00:07]} 24. h4 {[%emt 0:00:58]} c3 {[%emt 0:03:34]} 25. bxc3 {[%emt 0:01:26]} bxc3 {[%emt 0:06:57]} 26. Ne3 {[%emt 0:00:35]} Rd8 {[%emt 0:03:42]} 27. Kg2 {[%emt 0:04:37]} Qa5 {[%emt 0:01:09]} 28. Qe4 {[%emt 0:02:34]} Qb5 {[%emt 0:01:09]} 29. Ng4 {[%emt 0:07:55]} Rd2+ {[%emt 0:07:11]} 30. Rf2 {[%emt 0:01:05]} h5 {[%emt 0:00:01]} 31. Nxf6+ gxf6 {[%emt 0:00:00]} 32. Qa8+ {[%emt 0:01:59]} Kg7 {[%emt 0:00:09]} 33. Qf3 {[%emt 0:00:47]} Qc5 {[%emt 0:04:19]} 34. Rxd2 {[%emt 0:00:45]} cxd2 {[%emt 0:00:02]} 35. Qd3 {[%emt 0:00:22]} Qb4 {[%emt 0:00:07]} 36. Kf2 {[%emt 0:00:35]} a5 {[%emt 0:00:05]} 37. Ke2 {[%emt 0:00:22]} a4 {[%emt 0:00:19]} 38. Qxd2 {[%emt 0:00:42]} Qg4+ {[%emt 0:00:06]} 39. Kf2 {[%emt 0:00:06]} Qxf5+ {[%emt 0:00:06]} 40. Kg2 {[%emt 0:00:05]} a3 {[%emt 0:00:44]} 41. Qc3 {[%emt 0:00:27]} a2 {[%emt 0:00:12]} 42. Qb2 {[%emt 0:00:23]} Qa5 {[%emt 0:00:21]} 43. Qa1 {[%emt 0:00:59]} Qa4 {[%emt 0:00:09]} 44. Kh3 {[%emt 0:00:54]} Qxc2 {[%emt 0:00:11]} 45. g4 {[%emt 0:00:38]} Qb1 {[%emt 0:00:05]} 46. Qc3 {[%emt 0:00:31]} a1=Q {[%emt 0:00:12]} 47. Qg3 {[%emt 0:00:27]} Qh1+ {[%emt 0:00:09]} 48. Qh2 {[%emt 0:00:04]} Qc3# {[%emt 0:00:10]} 0-1

[Event "XIII Mediterranean Championship 2023"]
[Site "Castell-Platja d Aro"]
[Date "2023.11.07"]
[Round "5.17"]
[White "Jimenez Fernandez, Rebeca"]
[Black "Valle Luis, Leo"]
[Result "1/2-1/2"]
[ECO "B15"]
[WhiteElo "2053"]
[BlackElo "2216"]
[Annotator "RC"]
[PlyCount "154"]
[EventDate "2023.10.26"]
[EventType "swiss"]
[EventCountry "ESP"]
[SourceTitle "playchess.com"]
[Source "ChessBase"]
[SourceQuality "1"]
[TimeControl "5400+30"]

1. e4 {[%emt 0:00:02]} c6 {[%emt 0:00:20]} 2. d4 {[%emt 0:00:07]} d5 {[%emt 0:00:07]} 3. Nc3 {[%emt 0:00:02]} dxe4 {[%emt 0:00:15]} 4. Nxe4 {[%emt 0:00:05]} Nf6 {[%emt 0:00:11]} 5. Nxf6+ {[%emt 0:00:03]} exf6 {[%emt 0:00:09]} 6. c3 {[%emt 0:00:03]} Bd6 {[%emt 0:00:37]} 7. Bd3 {[%emt 0:00:04]} O-O {[%emt 0:00:09]} 8. Ne2 {[%emt 0:00:02]} Re8 {[%emt 0:00:08]} 9. Qc2 {[%emt 0:00:04]} h5 {[%emt 0:00:22]} 10. Be3 {[%emt 0:00:03]} Nd7 {[%emt 0:00:06]} 11. O-O-O {[%emt 0:00:05]} Nf8 {[%emt 0:00:25]} 12. Kb1 {[%emt 0:00:05]} Be6 {[%emt 0:00:46]} 13. c4 {[%emt 0:00:05]} Rc8 {[%emt 0:00:24]} 14. a3 {[%emt 0:00:13]} b5 {[%emt 0:01:06]} 15. c5 {[%emt 0:03:15]} Bb8 {[%emt 0:00:11]} 16. d5 {[%emt 0:08:04]} Bxd5 {[%emt 0:13:19]} 17. Nc3 {[%emt 0:00:18]} a6 {[%emt 0:00:54]} 18. Nxd5 {[%emt 0:12:39]} cxd5 {[%emt 0:00:17]} 19. g4 {[%emt 0:00:12]} h4 {[%emt 0:04:24]} 20. h3 {[%emt 0:12:27]} Qe7 {[%emt 0:09:01]} 21. b4 {[%emt 0:03:51]} Rcd8 {[%emt 0:07:32]} 22. Bc1 {[%emt 0:02:43]} Ne6 {[%emt 0:15:06]} 23. Rhe1 {[%emt 0:02:13]} Qc7 {[%emt 0:00:47]} 24. Bf1 {[%emt 0:10:39]} Qh2 {[%emt 0:06:05]} 25. Qf5 {[%emt 0:03:42]} Be5 {[%emt 0:06:03]} 26. Bd3 {[%emt 0:25:18]} g6 {[%emt 0:01:54]} 27. Qf3 {[%emt 0:00:07]} Bd4 {[%emt 0:12:06]} 28. Re2 {[%emt 0:11:41]} Qc7 {[%emt 0:02:12]} 29. Bc2 {[%emt 0:03:13]} Be5 {[%emt 0:02:02]} 30. Bb2 {[%emt 0:01:38]} Bxb2 {[%emt 0:05:50]} 31. Kxb2 {[%emt 0:00:05]} Kg7 {[%emt 0:00:35]} 32. Bb3 {[%emt 0:01:40]} Ng5 {[%emt 0:01:05]} 33. Qd3 {[%emt 0:00:12]} Rxe2+ {[%emt 0:00:29]} 34. Qxe2 {[%emt 0:00:03]} Nxh3 {[%emt 0:00:30]} 35. Qf3 {[%emt 0:01:17]} Nf4 {[%emt 0:00:12]} 36. Kb1 {[%emt 0:00:45]} Qe5 {[%emt 0:01:19]} 37. Kc2 {[%emt 0:00:58]} d4 {[%emt 0:03:26]} 38. Qb7 {[%emt 0:00:01]} d3+ {[%emt 0:00:10]} 39. Kb1 {[%emt 0:00:12]} Nd5 {[%emt 0:02:36]} 40. Rxd3 {[%emt 0:00:01]} Nc3+ {[%emt 0:00:12]} 41. Rxc3 {[%emt 0:01:28]} Qxc3 {[%emt 0:00:10]} 42. Qxf7+ {[%emt 0:00:03]} Kh8 {[%emt 0:04:28]} 43. Bc2 {[%emt 0:00:03]} Qe1+ {[%emt 0:00:07]} 44. Kb2 {[%emt 0:00:12]} Qe5+ {[%emt 0:00:07]} 45. Kb1 {[%emt 0:00:10]} Qe1+ {[%emt 0:01:38]} 46. Kb2 {[%emt 0:00:03]} Qe8 {[%emt 0:00:54]} 47. Qxf6+ {[%emt 0:00:10]} Kh7 {[%emt 0:00:00]} 48. Bxg6+ {[%emt 0:00:15]} Qxg6 {[%emt 0:00:29]} 49. Qxh4+ {[%emt 0:00:04]} Kg7 {[%emt 0:01:01]} 50. Qxd8 {[%emt 0:00:08]} Qxg4 {[%emt 0:00:04]} 51. Kc3 {[%emt 0:00:52]} Qc4+ {[%emt 0:00:07]} 52. Kb2 {[%emt 0:02:14]} Qe2+ {[%emt 0:00:15]} 53. Kc1 {[%emt 0:00:33]} Qc4+ {[%emt 0:00:41]} 54. Kd1 {[%emt 0:00:27]} Qf1+ {[%emt 0:00:06]} 55. Kd2 {[%emt 0:00:23]} Qxf2+ {[%emt 0:00:25]} 56. Kc3 {[%emt 0:00:04]} Qe1+ {[%emt 0:00:13]} 57. Qd2 {[%emt 0:00:18]} Qa1+ {[%emt 0:00:07]} 58. Qb2 {[%emt 0:00:06]} Qf1 {[%emt 0:01:31]} 59. Kd2+ {[%emt 0:00:53]} Kf7 {[%emt 0:00:07]} 60. Qb3+ {[%emt 0:00:11]} Kf8 {[%emt 0:00:14]} 61. Qe3 {[%emt 0:01:26]} Qg2+ {[%emt 0:00:18]} 62. Kd3 {[%emt 0:00:13]} Qd5+ {[%emt 0:00:10]} 63. Ke2 {[%emt 0:00:20]} Qc4+ {[%emt 0:00:16]} 64. Kf3 {[%emt 0:00:13]} Qd5+ {[%emt 0:00:32]} 65. Kf4 {[%emt 0:00:35]} Kf7 {[%emt 0:00:29]} 66. Qf3 {[%emt 0:00:15]} Qd4+ {[%emt 0:03:42]} 67. Kg5+ {[%emt 0:00:13]} Ke7 {[%emt 0:00:27]} 68. Qb7+ {[%emt 0:00:21]} Kd8 {[%emt 0:00:12]} 69. Qb6+ {[%emt 0:00:15]} Ke7 {[%emt 0:00:04]} 70. Qc7+ {[%emt 0:01:09]} Ke6 {[%emt 0:00:30]} 71. Qc8+ {[%emt 0:01:06]} Ke7 {[%emt 0:00:07]} 72. Qb7+ {[%emt 0:00:54]} Kd8 {[%emt 0:00:17]} 73. Kf5 {[%emt 0:01:22]} Qf2+ {[%emt 0:00:37]} 74. Ke5 {[%emt 0:00:23]} Qg3+ {[%emt 0:00:12]} 75. Kd4 {[%emt 0:00:39]} Qf2+ {[%emt 0:00:39]} 76. Kd3 {[%emt 0:00:20]} Qg3+ {[%emt 0:00:19]} 77. Kd4 {[%emt 0:00:22]} Qf2+ {[%emt 0:00:11]} 1/2-1/2

[Event "XIII Mediterranean Championship 2023"]
[Site "Castell-Platja d Aro"]
[Date "2023.11.07"]
[Round "5.18"]
[White "Fortuny Profitos, Jordi"]
[Black "De Lussac, Estephe"]
[Result "1/2-1/2"]
[ECO "D00"]
[WhiteElo "2135"]
[BlackElo "2013"]
[Annotator "RC"]
[PlyCount "99"]
[EventDate "2023.10.26"]
[EventType "swiss"]
[EventCountry "ESP"]
[SourceTitle "playchess.com"]
[Source "ChessBase"]
[SourceQuality "1"]
[TimeControl "5400+30"]

1. d4 {[%emt 0:00:02]} d5 {[%emt 0:01:08]} 2. Bf4 {[%emt 0:00:05]} Nf6 {[%emt 0:00:06]} 3. e3 {[%emt 0:00:03]} Bg4 {[%emt 0:00:11]} 4. f3 {[%emt 0:03:04]} Bd7 {[%emt 0:00:05]} 5. Bd3 {[%emt 0:01:11]} c5 {[%emt 0:01:25]} 6. c3 {[%emt 0:00:43]} Nc6 {[%emt 0:01:36]} 7. Nd2 {[%emt 0:03:20]} Nh5 {[%emt 0:03:15]} 8. Bg5 {[%emt 0:01:35]} h6 {[%emt 0:00:09]} 9. Bh4 {[%emt 0:00:07]} g5 {[%emt 0:03:28]} 10. f4 {[%emt 0:05:12]} Nxf4 {[%emt 0:03:04]} 11. exf4 {[%emt 0:04:28]} gxh4 {[%emt 0:00:19]} 12. dxc5 {[%emt 0:00:53]} a5 {[%emt 0:04:25]} 13. a4 {[%emt 0:11:46]} Rg8 {[%emt 0:14:14]} 14. Qe2 {[%emt 0:08:15]} Bg4 {[%emt 0:01:58]} 15. Ngf3 {[%emt 0:03:18]} e6 {[%emt 0:07:16]} 16. Qf2 {[%emt 0:07:02]} Bxf3 {[%emt 0:12:32]} 17. Nxf3 {[%emt 0:04:23]} d4 {[%emt 0:11:12]} 18. cxd4 {[%emt 0:14:50]} Bxc5 {[%emt 0:01:37]} 19. dxc5 {[%emt 0:01:36]} Qxd3 {[%emt 0:00:07]} 20. Qe2 {[%emt 0:04:07]} Qxe2+ {[%emt 0:00:57]} 21. Kxe2 {[%emt 0:00:01]} Rxg2+ {[%emt 0:00:12]} 22. Ke3 {[%emt 0:00:36]} Rd8 {[%emt 0:08:12]} 23. Nxh4 {[%emt 0:04:48]} Rxb2 {[%emt 0:00:43]} 24. Rab1 {[%emt 0:00:20]} Rdd2 {[%emt 0:05:23]} 25. f5 {[%emt 0:06:09]} Rxh2 {[%emt 0:14:32]} 26. Rxh2 {[%emt 0:03:27]} Rxb1 {[%emt 0:00:40]} 27. fxe6 {[%emt 0:00:20]} fxe6 {[%emt 0:02:00]} 28. Ng6 {[%emt 0:02:25]} Rb3+ {[%emt 0:02:13]} 29. Ke4 {[%emt 0:00:04]} Rc3 {[%emt 0:00:44]} 30. Rxh6 {[%emt 0:01:09]} Rxc5 {[%emt 0:00:45]} 31. Nf4 {[%emt 0:00:04]} Kd7 {[%emt 0:00:48]} 32. Rh7+ {[%emt 0:00:20]} Kc8 {[%emt 0:00:34]} 33. Rh8+ {[%emt 0:00:12]} Kd7 {[%emt 0:00:35]} 34. Rh7+ {[%emt 0:00:04]} Kd6 {[%emt 0:00:25]} 35. Rxb7 {[%emt 0:00:08]} Rc4+ {[%emt 0:00:19]} 36. Ke3 {[%emt 0:00:29]} Rxa4 {[%emt 0:00:15]} 37. Rb6 {[%emt 0:01:37]} Rb4 {[%emt 0:00:43]} 38. Ra6 {[%emt 0:00:47]} Rb3+ {[%emt 0:00:12]} 39. Kd2 {[%emt 0:00:20]} e5 {[%emt 0:00:22]} 40. Nd3 {[%emt 0:00:17]} e4 {[%emt 0:01:02]} 41. Nc1 {[%emt 0:01:03]} Rb4 {[%emt 0:00:39]} 42. Kc3 {[%emt 0:01:42]} Kd5 {[%emt 0:00:32]} 43. Rxa5+ {[%emt 0:02:22]} Nxa5 {[%emt 0:00:21]} 44. Kxb4 {[%emt 0:00:01]} Kd4 {[%emt 0:00:32]} 45. Kxa5 {[%emt 0:00:11]} Ke3 {[%emt 0:00:02]} 46. Kb4 {[%emt 0:00:37]} Kd2 {[%emt 0:00:01]} 47. Kc4 {[%emt 0:00:11]} e3 {[%emt 0:00:25]} 48. Nd3 {[%emt 0:00:04]} e2 {[%emt 0:00:08]} 49. Kd4 {[%emt 0:00:03]} e1=B {[%emt 0:00:19]} 50. Ne5 {[%emt 0:00:08]} 1/2-1/2

[Event "XIII Mediterranean Championship 2023"]
[Site "Castell-Platja d Aro"]
[Date "2023.11.07"]
[Round "5.19"]
[White "Andreu Lopez, Santiago"]
[Black "Rodriguez Redondo, Adhara"]
[Result "0-1"]
[ECO "A07"]
[WhiteElo "1834"]
[BlackElo "2117"]
[Annotator "RC"]
[PlyCount "130"]
[EventDate "2023.10.26"]
[EventType "swiss"]
[EventCountry "ESP"]
[SourceTitle "playchess.com"]
[Source "ChessBase"]
[SourceQuality "1"]
[TimeControl "5400+30"]

1. Nf3 {[%emt 0:00:01]} d5 {[%emt 0:00:55]} 2. g3 {[%emt 0:00:07]} Nd7 {[%emt 0:00:04]} 3. Bg2 {[%emt 0:00:09]} e5 {[%emt 0:00:06]} 4. d3 {[%emt 0:00:14]} Ngf6 {[%emt 0:00:46]} 5. O-O {[%emt 0:00:11]} Bd6 {[%emt 0:00:37]} 6. c4 {[%emt 0:02:29]} c6 {[%emt 0:01:07]} 7. cxd5 {[%emt 0:04:22]} cxd5 {[%emt 0:00:31]} 8. Nc3 {[%emt 0:00:07]} O-O {[%emt 0:02:20]} 9. Bd2 {[%emt 0:01:37]} Re8 {[%emt 0:13:44]} 10. Nh4 {[%emt 0:02:54]} Nb6 {[%emt 0:03:48]} 11. a4 {[%emt 0:01:01]} Be6 {[%emt 0:15:09]} 12. Nb5 {[%emt 0:03:30]} Bb8 {[%emt 0:02:48]} 13. a5 {[%emt 0:19:09]} Nc8 {[%emt 0:01:24]} 14. a6 {[%emt 0:00:54]} b6 {[%emt 0:00:14]} 15. Nf3 {[%emt 0:14:37]} h6 {[%emt 0:13:18]} 16. Qb3 {[%emt 0:03:32]} Qd7 {[%emt 0:07:32]} 17. Rac1 {[%emt 0:05:23]} Nd6 {[%emt 0:05:27]} 18. Na3 {[%emt 0:00:23]} Nf5 {[%emt 0:01:29]} 19. Qb5 {[%emt 0:01:24]} Bd6 {[%emt 0:04:18]} 20. Bc3 {[%emt 0:11:43]} Bxa3 {[%emt 0:03:06]} 21. Qxd7 {[%emt 0:00:08]} Nxd7 {[%emt 0:00:37]} 22. bxa3 {[%emt 0:00:07]} f6 {[%emt 0:01:06]} 23. Bb4 {[%emt 0:00:44]} Nb8 {[%emt 0:05:23]} 24. Rc2 {[%emt 0:02:22]} Nxa6 {[%emt 0:01:17]} 25. Rfc1 {[%emt 0:00:06]} Rad8 {[%emt 0:01:22]} 26. Bh3 {[%emt 0:04:56]} Nd4 {[%emt 0:03:03]} 27. Nxd4 {[%emt 0:02:00]} Bxh3 {[%emt 0:00:10]} 28. Nb5 {[%emt 0:00:45]} Rd7 {[%emt 0:04:55]} 29. Rc8 {[%emt 0:03:54]} Rxc8 {[%emt 0:01:01]} 30. Rxc8+ {[%emt 0:00:07]} Kh7 {[%emt 0:00:31]} 31. Ra8 {[%emt 0:03:59]} Nc7 {[%emt 0:04:02]} 32. Nxc7 {[%emt 0:02:50]} Rxc7 {[%emt 0:00:02]} 33. f3 {[%emt 0:00:11]} a5 {[%emt 0:02:02]} 34. Bf8 {[%emt 0:00:42]} Bc8 {[%emt 0:02:16]} 35. Rb8 {[%emt 0:00:32]} Bb7 {[%emt 0:00:48]} 36. Re8 {[%emt 0:00:51]} Kg6 {[%emt 0:00:35]} 37. Re7 {[%emt 0:10:59]} Rxe7 {[%emt 0:00:04]} 38. Bxe7 {[%emt 0:00:00]} b5 {[%emt 0:00:17]} 39. Kf2 {[%emt 0:00:00]} Kf7 {[%emt 0:00:23]} 40. Bc5 {[%emt 0:00:00]} g6 {[%emt 0:00:45]} 41. Ke1 {[%emt 0:00:00]} Ke6 {[%emt 0:00:41]} 42. Kd2 {[%emt 0:00:00]} d4 {[%emt 0:00:34]} 43. Kc2 {[%emt 0:00:00]} Bd5 {[%emt 0:00:11]} 44. Bb6 {[%emt 0:00:00]} b4 {[%emt 0:00:20]} 45. axb4 {[%emt 0:00:00]} axb4 {[%emt 0:00:04]} 46. Bc5 {[%emt 0:00:00]} b3+ {[%emt 0:00:02]} 47. Kd2 {[%emt 0:01:01]} Bc6 {[%emt 0:01:12]} 48. Ba3 {[%emt 0:00:10]} h5 {[%emt 0:00:37]} 49. Bb2 {[%emt 0:00:27]} Kf5 {[%emt 0:01:07]} 50. Ke1 {[%emt 0:00:16]} g5 {[%emt 0:00:33]} 51. Kf2 {[%emt 0:00:17]} g4 {[%emt 0:00:19]} 52. Bc1 {[%emt 0:01:36]} Bb5 {[%emt 0:00:26]} 53. Bb2 {[%emt 0:00:14]} Ba6 {[%emt 0:00:54]} 54. Bc1 {[%emt 0:00:48]} Ke6 {[%emt 0:00:24]} 55. Bb2 {[%emt 0:00:25]} Bb5 {[%emt 0:00:39]} 56. Bc1 {[%emt 0:00:08]} Kd5 {[%emt 0:00:20]} 57. Bb2 {[%emt 0:00:16]} f5 {[%emt 0:00:30]} 58. Bc1 {[%emt 0:00:25]} gxf3 {[%emt 0:00:25]} 59. Kxf3 {[%emt 0:00:21]} e4+ {[%emt 0:00:08]} 60. dxe4+ {[%emt 0:00:51]} fxe4+ {[%emt 0:00:04]} 61. Kf2 {[%emt 0:00:24]} Kc4 {[%emt 0:01:18]} 62. Bb2 {[%emt 0:00:20]} e3+ {[%emt 0:00:39]} 63. Ke1 {[%emt 0:00:28]} Bd7 {[%emt 0:00:10]} 64. Kd1 {[%emt 0:02:13]} Bg4 {[%emt 0:00:07]} 65. Ke1 {[%emt 0:00:06]} d3 {[%emt 0:00:56]} 0-1

[Event "XIII Mediterranean Championship 2023"]
[Site "Castell-Platja d Aro"]
[Date "2023.11.07"]
[Round "5.20"]
[White "Makka, Evanthia"]
[Black "Galvan Cipriani, Viviana"]
[Result "1-0"]
[ECO "D05"]
[WhiteElo "2004"]
[BlackElo "2077"]
[Annotator "RC"]
[PlyCount "186"]
[EventDate "2023.10.26"]
[EventType "swiss"]
[EventCountry "ESP"]
[SourceTitle "playchess.com"]
[Source "ChessBase"]
[SourceQuality "1"]
[TimeControl "5400+30"]

1. d4 {[%emt 0:01:51]} Nf6 {[%emt 0:03:53]} 2. Nf3 {[%emt 0:00:15]} c5 {[%emt 0:00:40]} 3. e3 {[%emt 0:00:44]} e6 {[%emt 0:08:11]} 4. Bd3 {[%emt 0:00:48]} Nc6 {[%emt 0:02:39]} 5. O-O {[%emt 0:09:06]} Qc7 {[%emt 0:06:08]} 6. c3 {[%emt 0:05:11]} d5 {[%emt 0:01:37]} 7. Nbd2 {[%emt 0:01:36]} Bd6 {[%emt 0:00:15]} 8. dxc5 {[%emt 0:04:35]} Bxc5 {[%emt 0:00:22]} 9. e4 {[%emt 0:00:14]} e5 {[%emt 0:14:41]} 10. exd5 {[%emt 0:05:21]} Nxd5 {[%emt 0:00:06]} 11. Ne4 {[%emt 0:07:42]} Be7 {[%emt 0:06:05]} 12. Nfg5 {[%emt 0:13:58]} Nb6 {[%emt 0:07:24]} 13. Qb3 {[%emt 0:23:48]} Bxg5 {[%emt 0:00:56]} 14. Nxg5 {[%emt 0:00:52]} h6 {[%emt 0:00:38]} 15. Ne4 {[%emt 0:01:34]} Be6 {[%emt 0:01:02]} 16. Qc2 {[%emt 0:03:57]} Nd7 {[%emt 0:09:43]} 17. Ng3 {[%emt 0:04:35]} Nc5 {[%emt 0:12:24]} 18. Bf5 {[%emt 0:00:47]} g6 {[%emt 0:01:04]} 19. Bxe6 {[%emt 0:02:15]} Nxe6 {[%emt 0:00:08]} 20. Rd1 {[%emt 0:00:56]} f5 {[%emt 0:07:05]} 21. h4 {[%emt 0:04:02]} h5 {[%emt 0:00:37]} 22. Nf1 {[%emt 0:02:48]} Kf7 {[%emt 0:03:16]} 23. Ne3 {[%emt 0:01:48]} Ne7 {[%emt 0:03:39]} 24. b3 {[%emt 0:01:32]} Rhd8 {[%emt 0:06:55]} 25. Ba3 {[%emt 0:00:17]} Rac8 {[%emt 0:00:24]} 26. Nc4 {[%emt 0:00:49]} Nc5 {[%emt 0:00:47]} 27. Qe2 {[%emt 0:00:26]} e4 {[%emt 0:02:40]} 28. Qe3 {[%emt 0:01:00]} b6 {[%emt 0:00:28]} 29. Qh6 {[%emt 0:00:40]} Kg8 {[%emt 0:00:06]} 30. Ne3 {[%emt 0:00:21]} Qe5 {[%emt 0:00:43]} 31. c4 {[%emt 0:00:42]} Qf6 {[%emt 0:00:50]} 32. Rab1 {[%emt 0:00:38]} Qg7 {[%emt 0:00:28]} 33. Qg5 {[%emt 0:00:38]} Nc6 {[%emt 0:00:34]} 34. Bb2 {[%emt 0:00:44]} Ne6 {[%emt 0:00:05]} 35. Bxg7 {[%emt 0:00:36]} Nxg5 {[%emt 0:00:04]} 36. Rxd8+ {[%emt 0:00:14]} Nxd8 {[%emt 0:00:04]} 37. Bb2 {[%emt 0:00:48]} Nge6 {[%emt 0:01:08]} 38. Rd1 {[%emt 0:00:07]} Rc7 {[%emt 0:00:10]} 39. Nd5 {[%emt 0:00:44]} Rb7 {[%emt 0:00:10]} 40. Nf6+ {[%emt 0:00:23]} Kf7 {[%emt 0:00:09]} 41. Rd6 {[%emt 0:00:42]} Ke7 {[%emt 0:00:22]} 42. Be5 {[%emt 0:00:33]} Kf7 {[%emt 0:00:53]} 43. Nd5 {[%emt 0:00:35]} Ke8 {[%emt 0:01:03]} 44. Bf6 {[%emt 0:00:11]} Rd7 {[%emt 0:00:34]} 45. Rxd7 {[%emt 0:00:33]} Kxd7 {[%emt 0:00:05]} 46. g3 {[%emt 0:01:01]} Nc6 {[%emt 0:00:40]} 47. Bc3 {[%emt 0:00:12]} Ncd4 {[%emt 0:01:32]} 48. Kg2 {[%emt 0:00:13]} Nf3 {[%emt 0:01:00]} 49. Kf1 {[%emt 0:00:41]} Ke8 {[%emt 0:00:00]} 50. Ke2 {[%emt 0:00:45]} Kd7 {[%emt 0:00:30]} 51. Ke3 {[%emt 0:00:16]} Nh2 {[%emt 0:00:32]} 52. a4 {[%emt 0:00:42]} Nc5 {[%emt 0:00:30]} 53. b4 {[%emt 0:00:17]} Ng4+ {[%emt 0:00:22]} 54. Ke2 {[%emt 0:00:13]} Nd3 {[%emt 0:00:32]} 55. Bd4 {[%emt 0:00:36]} Nc1+ {[%emt 0:00:35]} 56. Kf1 {[%emt 0:00:23]} Nd3 {[%emt 0:00:29]} 57. a5 {[%emt 0:00:27]} bxa5 {[%emt 0:00:26]} 58. b5 {[%emt 0:00:39]} Nge5 {[%emt 0:00:32]} 59. c5 {[%emt 0:00:27]} a4 {[%emt 0:00:33]} 60. c6+ {[%emt 0:00:26]} Nxc6 {[%emt 0:00:25]} 61. bxc6+ {[%emt 0:00:19]} Kxc6 {[%emt 0:00:04]} 62. Nc3 {[%emt 0:01:10]} a5 {[%emt 0:00:19]} 63. Nxa4 {[%emt 0:00:09]} Kb5 {[%emt 0:00:11]} 64. Nb2 {[%emt 0:00:45]} Nc1 {[%emt 0:00:49]} 65. Nd1 {[%emt 0:00:38]} Kc4 {[%emt 0:00:22]} 66. Bf6 {[%emt 0:00:31]} Kb3 {[%emt 0:00:47]} 67. Ne3 {[%emt 0:00:17]} a4 {[%emt 0:00:20]} 68. Nd5 {[%emt 0:00:45]} a3 {[%emt 0:00:31]} 69. Ne7 {[%emt 0:00:33]} Nd3 {[%emt 0:00:18]} 70. Ba1 {[%emt 0:00:33]} Ka2 {[%emt 0:00:49]} 71. Bd4 {[%emt 0:00:21]} Kb1 {[%emt 0:00:15]} 72. Nd5 {[%emt 0:00:09]} Kc2 {[%emt 0:00:46]} 73. Ke2 {[%emt 0:00:37]} Nb2 {[%emt 0:01:03]} 74. Nc3 {[%emt 0:00:23]} Kb3 {[%emt 0:00:29]} 75. Ke3 {[%emt 0:00:20]} Nc4+ {[%emt 0:00:32]} 76. Kf4 {[%emt 0:00:12]} Nd2 {[%emt 0:00:28]} 77. Bf6 {[%emt 0:00:40]} Nf3 {[%emt 0:00:27]} 78. Nb5 {[%emt 0:00:43]} Ka4 {[%emt 0:00:35]} 79. Nd4 {[%emt 0:00:16]} Nh2 {[%emt 0:00:30]} 80. Nc2 {[%emt 0:00:35]} Nf3 {[%emt 0:00:12]} 81. Nd4 {[%emt 0:00:55]} Nh2 {[%emt 0:00:26]} 82. Ne2 {[%emt 0:00:31]} Nf3 {[%emt 0:00:12]} 83. Nc3+ {[%emt 0:00:31]} Kb4 {[%emt 0:00:49]} 84. Nd5+ {[%emt 0:00:41]} Kc4 {[%emt 0:00:49]} 85. Ne3+ {[%emt 0:00:37]} Kb3 {[%emt 0:00:16]} 86. Nf1 {[%emt 0:00:27]} Kc2 {[%emt 0:00:46]} 87. Bg7 {[%emt 0:00:31]} a2 {[%emt 0:00:31]} 88. Ne3+ {[%emt 0:00:22]} Kd3 {[%emt 0:00:29]} 89. Ba1 {[%emt 0:00:36]} Nd2 {[%emt 0:00:30]} 90. Kg5 {[%emt 0:00:26]} Nb3 {[%emt 0:00:13]} 91. Bb2 {[%emt 0:00:16]} Ke2 {[%emt 0:00:47]} 92. Kxg6 {[%emt 0:00:34]} Kxf2 {[%emt 0:00:05]} 93. Nxf5 {[%emt 0:00:38]} a1=Q {[%emt 0:01:27]} 1-0